Workbook

Sheet Summary
B2: Global Impacts
B3: nominal $ million | C3: 2010 | D3: 2011 | E3: 2012 | F3: 2013 | G3: 2014 | H3: 2015 | I3: 2016 | J3: 2017 | K3: 2018 | L3: 2019 | M3: 2020 | N3: 2021 | O3: 2022 | P3: 2023 | Q3: 2024 | R3: 2025 | S3: 2026 | T3: 2027 | U3: 2028 | V3: 2029 | W3: 2030 | X3: 2031 | Y3: 2032 | Z3: 2033 | AA3: 2034 | AB3: 2035 | AC3: 2036 | AD3: 2037 | AE3: 2038 | AF3: 2039 | AG3: 2040 | AH3: 2041 | AI3: 2042 | AJ3: 2043 | AK3: 2044 | AL3: 2045 | AM3: 2046 | AN3: 2047 | AO3: 2048 | AP3: 2049 | AQ3: 2050
B4: IESO Forecast GA Cost | J4: ='Debt Calcs'!D15 -> 12095.36968 | K4: ='Debt Calcs'!E15 -> 11834.68097 | L4: ='Debt Calcs'!F15 -> 11552.10515 | M4: ='Debt Calcs'!G15 -> 12168.4278 | N4: ='Debt Calcs'!H15 -> 10843.55548 | O4: ='Debt Calcs'!I15 -> 10633.62626 | P4: ='Debt Calcs'!J15 -> 10243.43217 | Q4: ='Debt Calcs'!K15 -> 11128.11905 | R4: ='Debt Calcs'!L15 -> 10527.01809 | S4: ='Debt Calcs'!M15 -> 10033.2872 | T4: ='Debt Calcs'!N15 -> 11042.84423 | U4: ='Debt Calcs'!O15 -> 10819.09764 | V4: ='Debt Calcs'!P15 -> 10008.69218 | W4: ='Debt Calcs'!Q15 -> 9721.438112 | X4: ='Debt Calcs'!R15 -> 8654.484695 | Y4: ='Debt Calcs'!S15 -> 8819.93883 | Z4: ='Debt Calcs'!T15 -> 8238.038322 | AA4: ='Debt Calcs'!U15 -> 7756.435132 | AB4: ='Debt Calcs'!V15 -> 5662.321192
B5: GA Cost Extrapolated | AC5: ='Debt Calcs'!W15 -> 5388.844511 | AD5: ='Debt Calcs'!X15 -> 5128.576105 | AE5: ='Debt Calcs'!Y15 -> 4880.878046 | AF5: ='Debt Calcs'!Z15 -> 4645.143215 | AG5: ='Debt Calcs'!AA15 -> 4420.793817 | AH5: ='Debt Calcs'!AB15 -> 4207.279963 | AI5: ='Debt Calcs'!AC15 -> 4004.078322 | AJ5: ='Debt Calcs'!AD15 -> 3810.690838 | AK5: ='Debt Calcs'!AE15 -> 3626.643511 | AL5: ='Debt Calcs'!AF15 -> 3451.485233 | AM5: ='Debt Calcs'!AG15 -> 3284.786684 | AN5: ='Debt Calcs'!AH15 -> 3126.13928 | AO5: ='Debt Calcs'!AI15 -> 2975.154169 | AP5: ='Debt Calcs'!AJ15 -> 2831.46128 | AQ5: ='Debt Calcs'!AK15 -> 2694.708417
B6: GA Payment | J6: ='Debt Calcs'!D21 -> 9594.764145 | K6: ='Debt Calcs'!E21 -> 9326.755096 | L6: ='Debt Calcs'!F21 -> 9051.17624 | M6: ='Debt Calcs'!G21 -> 9093.866791 | N6: ='Debt Calcs'!H21 -> 8183.716495 | O6: ='Debt Calcs'!I21 -> 8179.552967 | P6: ='Debt Calcs'!J21 -> 8205.709757 | Q6: ='Debt Calcs'!K21 -> 9742.51728 | R6: ='Debt Calcs'!L21 -> 9315.95853 | S6: ='Debt Calcs'!M21 -> 10236.41209 | T6: ='Debt Calcs'!N21 -> 11475.72688 | U6: ='Debt Calcs'!O21 -> 13060.64879 | V6: ='Debt Calcs'!P21 -> 12250.24333 | W6: ='Debt Calcs'!Q21 -> 11962.98926 | X6: ='Debt Calcs'!R21 -> 10896.03584 | Y6: ='Debt Calcs'!S21 -> 11061.48998 | Z6: ='Debt Calcs'!T21 -> 10479.58947 | AA6: ='Debt Calcs'!U21 -> 9997.98628 | AB6: ='Debt Calcs'!V21 -> 7903.872339 | AC6: ='Debt Calcs'!W21 -> 7630.395659 | AD6: ='Debt Calcs'!X21 -> 7370.127253 | AE6: ='Debt Calcs'!Y21 -> 7122.429193 | AF6: ='Debt Calcs'!Z21 -> 6886.694363 | AG6: ='Debt Calcs'!AA21 -> 6662.344965 | AH6: ='Debt Calcs'!AB21 -> 6448.831111 | AI6: ='Debt Calcs'!AC21 -> 6245.62947 | AJ6: ='Debt Calcs'!AD21 -> 6052.241986 | AK6: ='Debt Calcs'!AE21 -> 5868.194658 | AL6: ='Debt Calcs'!AF21 -> 5693.03638 | AM6: ='Debt Calcs'!AG21 -> 5526.337832 | AN6: ='Debt Calcs'!AH21 -> 5367.690427 | AO6: ='Debt Calcs'!AI21 -> 2975.154169 | AP6: ='Debt Calcs'!AJ21 -> 2831.46128 | AQ6: ='Debt Calcs'!AK21 -> 2694.708417
B7: Amount borrowed/paid-back in given year | J7: =J6-J4 -> -2500.605537 | K7: =K6-K4 -> -2507.925872 | L7: -2500.928913 | M7: -3074.561014 | N7: -2659.838981 | O7: -2454.073295 | P7: -2037.722412 | Q7: -1385.601773 | R7: -1211.059558 | S7: 203.1248853 | T7: 432.8826504 | U7: 2241.551148 | V7: 2241.551148 | W7: 2241.551148 | X7: 2241.551148 | Y7: 2241.551148 | Z7: 2241.551148 | AA7: 2241.551148 | AB7: 2241.551148 | AC7: =AC6-AC5 -> 2241.551148 | AD7: =AD6-AD5 -> 2241.551148 | AE7: 2241.551148 | AF7: 2241.551148 | AG7: 2241.551148 | AH7: 2241.551148 | AI7: 2241.551148 | AJ7: 2241.551148 | AK7: 2241.551148 | AL7: 2241.551148 | AM7: 2241.551148 | AN7: 2241.551148 | AO7: 0 | AP7: 0 | AQ7: 0
B8: Interest on accumulated debt from previous year | K8: =-J9*'Debt Calcs'!$C$5 -> -127.9309793 | L8: =-K9*'Debt Calcs'!$C$5 -> -262.7814158 | M8: =-L9*'Debt Calcs'!$C$5 -> -404.1728362 | N8: =-M9*'Debt Calcs'!$C$5 -> -582.14486 | O8: =-N9*'Debt Calcs'!$C$5 -> -748.0047533 | P8: =-O9*'Debt Calcs'!$C$5 -> -911.8230663 | Q8: =-P9*'Debt Calcs'!$C$5 -> -1062.721813 | R8: =-Q9*'Debt Calcs'!$C$5 -> -1187.978048 | S8: =-R9*'Debt Calcs'!$C$5 -> -1310.712812 | T8: =-S9*'Debt Calcs'!$C$5 -> -1367.37701 | U8: =-T9*'Debt Calcs'!$C$5 -> -1415.185741 | V8: =-U9*'Debt Calcs'!$C$5 -> -1372.908887 | W8: =-V9*'Debt Calcs'!$C$5 -> -1328.469149 | X8: =-W9*'Debt Calcs'!$C$5 -> -1281.755874 | Y8: =-X9*'Debt Calcs'!$C$5 -> -1232.652748 | Z8: =-Y9*'Debt Calcs'!$C$5 -> -1181.037506 | AA8: =-Z9*'Debt Calcs'!$C$5 -> -1126.781628 | AB8: =-AA9*'Debt Calcs'!$C$5 -> -1069.750019 | AC8: =-AB9*'Debt Calcs'!$C$5 -> -1009.800673 | AD8: =-AC9*'Debt Calcs'!$C$5 -> -946.784319 | AE8: =-AD9*'Debt Calcs'!$C$5 -> -880.5440481 | AF8: =-AE9*'Debt Calcs'!$C$5 -> -810.9149249 | AG8: =-AF9*'Debt Calcs'!$C$5 -> -737.7235757 | AH8: =-AG9*'Debt Calcs'!$C$5 -> -660.7877571 | AI8: =-AH9*'Debt Calcs'!$C$5 -> -579.9159021 | AJ8: =-AI9*'Debt Calcs'!$C$5 -> -494.9066429 | AK8: =-AJ9*'Debt Calcs'!$C$5 -> -405.54831 | AL8: =-AK9*'Debt Calcs'!$C$5 -> -311.6184048 | AM8: =-AL9*'Debt Calcs'!$C$5 -> -212.8830457 | AN8: =-AM9*'Debt Calcs'!$C$5 -> -109.0963856 | AO8: =-AN9*'Debt Calcs'!$C$5 -> -6.956197467e-12 | AP8: =-AO9*'Debt Calcs'!$C$5 -> -7.312076529e-12 | AQ8: =-AP9*'Debt Calcs'!$C$5 -> -7.686162365e-12
B9: Accumulated Debt | J9: ='Debt Calcs'!D20 -> 2500.605537 | K9: ='Debt Calcs'!E20 -> 5136.462389 | L9: ='Debt Calcs'!F20 -> 7900.172718 | M9: ='Debt Calcs'!G20 -> 11378.90657 | N9: ='Debt Calcs'!H20 -> 14620.89041 | O9: ='Debt Calcs'!I20 -> 17822.96846 | P9: ='Debt Calcs'!J20 -> 20772.51394 | Q9: ='Debt Calcs'!K20 -> 23220.83752 | R9: ='Debt Calcs'!L20 -> 25619.87513 | S9: ='Debt Calcs'!M20 -> 26727.46305 | T9: ='Debt Calcs'!N20 -> 27661.95741 | U9: ='Debt Calcs'!O20 -> 26835.59201 | V9: ='Debt Calcs'!P20 -> 25966.94975 | W9: ='Debt Calcs'!Q20 -> 25053.86775 | X9: ='Debt Calcs'!R20 -> 24094.07247 | Y9: ='Debt Calcs'!S20 -> 23085.17407 | Z9: ='Debt Calcs'!T20 -> 22024.66043 | AA9: ='Debt Calcs'!U20 -> 20909.89091 | AB9: ='Debt Calcs'!V20 -> 19738.08978 | AC9: ='Debt Calcs'!W20 -> 18506.33931 | AD9: ='Debt Calcs'!X20 -> 17211.57248 | AE9: ='Debt Calcs'!Y20 -> 15850.56538 | AF9: ='Debt Calcs'!Z20 -> 14419.92916 | AG9: ='Debt Calcs'!AA20 -> 12916.10159 | AH9: ='Debt Calcs'!AB20 -> 11335.33819 | AI9: ='Debt Calcs'!AC20 -> 9673.702949 | AJ9: ='Debt Calcs'!AD20 -> 7927.058444 | AK9: ='Debt Calcs'!AE20 -> 6091.055607 | AL9: ='Debt Calcs'!AF20 -> 4161.122864 | AM9: ='Debt Calcs'!AG20 -> 2132.454762 | AN9: ='Debt Calcs'!AH20 -> 1.359694579e-10 | AO9: ='Debt Calcs'!AI20 -> 1.429256554e-10 | AP9: ='Debt Calcs'!AJ20 -> 1.502377319e-10 | AQ9: ='Debt Calcs'!AK20 -> 1.579238943e-10
B11: Residential Bills (assuming 750 kWh/month)
B12: nominal $/month
C13: 2010 | D13: 2011 | E13: 2012 | F13: 2013 | G13: 2014 | H13: 2015 | I13: 2016 | J13: 2017 | K13: 2018 | L13: 2019 | M13: 2020 | N13: 2021 | O13: 2022 | P13: 2023 | Q13: 2024 | R13: 2025 | S13: 2026 | T13: 2027 | U13: 2028 | V13: 2029 | W13: 2030 | X13: 2031 | Y13: 2032 | Z13: 2033 | AA13: 2034 | AB13: 2035 | AC13: 2036 | AD13: 2037 | AE13: 2038 | AF13: 2039 | AG13: 2040 | AH13: 2041 | AI13: 2042 | AJ13: 2043 | AK13: 2044 | AL13: 2045 | AM13: 2046 | AN13: 2047 | AO13: 2048 | AP13: 2049 | AQ13: 2050
B14: Historical Values | C14: ='Historical Data'!C10 -> 104 | D14: ='Historical Data'!D10 -> 105 | E14: ='Historical Data'!E10 -> 112 | F14: ='Historical Data'!F10 -> 116.41 | G14: ='Historical Data'!G10 -> 123.51 | H14: ='Historical Data'!H10 -> 135.65 | I14: ='IESO Res Bill'!C15 -> 158.2909439
B15: IESO Forecast | J15: ='Residential Bill Calcs'!C19 -> 152.7056381 | K15: ='Residential Bill Calcs'!D19 -> 155.2508096 | L15: ='Residential Bill Calcs'!E19 -> 157.8813209 | M15: ='Residential Bill Calcs'!F19 -> 167.8143014 | N15: ='Residential Bill Calcs'!G19 -> 165.8623248 | O15: ='Residential Bill Calcs'!H19 -> 169.1179186 | P15: ='Residential Bill Calcs'!I19 -> 173.767697 | Q15: ='Residential Bill Calcs'!J19 -> 176.4209031 | R15: ='Residential Bill Calcs'!K19 -> 184.9737489 | S15: ='Residential Bill Calcs'!L19 -> 180.5375546 | T15: ='Residential Bill Calcs'!M19 -> 189.9041481 | U15: ='Residential Bill Calcs'!N19 -> 190.4477627 | V15: ='Residential Bill Calcs'!O19 -> 189.5946875 | W15: ='Residential Bill Calcs'!P19 -> 191.7439053 | X15: ='Residential Bill Calcs'!Q19 -> 194.3072384 | Y15: ='Residential Bill Calcs'!R19 -> 196.6073098 | Z15: ='Residential Bill Calcs'!S19 -> 198.6511645 | AA15: ='Residential Bill Calcs'!T19 -> 200.088293 | AB15: ='Residential Bill Calcs'!U19 -> 196.9844034
B16: IESO Forecast Extrapolated | AC16: ='Residential Bill Calcs'!V20 -> 197.9462448 | AD16: ='Residential Bill Calcs'!W20 -> 198.9127826 | AE16: ='Residential Bill Calcs'!X20 -> 199.8840399 | AF16: ='Residential Bill Calcs'!Y20 -> 200.8600396 | AG16: ='Residential Bill Calcs'!Z20 -> 201.840805 | AH16: ='Residential Bill Calcs'!AA20 -> 202.8263594 | AI16: ='Residential Bill Calcs'!AB20 -> 203.816726 | AJ16: ='Residential Bill Calcs'!AC20 -> 204.8119284 | AK16: ='Residential Bill Calcs'!AD20 -> 205.8119902 | AL16: ='Residential Bill Calcs'!AE20 -> 206.8169351 | AM16: ='Residential Bill Calcs'!AF20 -> 207.826787 | AN16: ='Residential Bill Calcs'!AG20 -> 208.8415699 | AO16: ='Residential Bill Calcs'!AH20 -> 209.8613077 | AP16: ='Residential Bill Calcs'!AI20 -> 210.8860248 | AQ16: ='Residential Bill Calcs'!AJ20 -> 211.9157454
B17: Adjusted Bill | J17: ='Residential Bill Calcs'!C28 -> 123.255265 | K17: ='Residential Bill Calcs'!D28 -> 125.7203703 | L17: ='Residential Bill Calcs'!E28 -> 128.2347777 | M17: ='Residential Bill Calcs'!F28 -> 130.7994733 | N17: ='Residential Bill Calcs'!G28 -> 133.4154628 | O17: ='Residential Bill Calcs'!H28 -> 142.0874678 | P17: ='Residential Bill Calcs'!I28 -> 151.3231533 | Q17: ='Residential Bill Calcs'!J28 -> 161.1591582 | R17: ='Residential Bill Calcs'!K28 -> 171.6345035 | S17: ='Residential Bill Calcs'!L28 -> 182.7907462 | T17: ='Residential Bill Calcs'!M28 -> 194.6721447 | U17: ='Residential Bill Calcs'!N28 -> 215.1373831 | V17: ='Residential Bill Calcs'!O28 -> 214.2843079 | W17: ='Residential Bill Calcs'!P28 -> 216.260871 | X17: ='Residential Bill Calcs'!Q28 -> 218.824204 | Y17: ='Residential Bill Calcs'!R28 -> 220.9540188 | Z17: ='Residential Bill Calcs'!S28 -> 222.8299651 | AA17: ='Residential Bill Calcs'!T28 -> 224.1014854 | AB17: ='Residential Bill Calcs'!U28 -> 220.6730932 | AC17: ='Residential Bill Calcs'!V28 -> 221.5367395 | AD17: ='Residential Bill Calcs'!W28 -> 222.4054894 | AE17: ='Residential Bill Calcs'!X28 -> 223.279364 | AF17: ='Residential Bill Calcs'!Y28 -> 224.1583848 | AG17: ='Residential Bill Calcs'!Z28 -> 225.0425732 | AH17: ='Residential Bill Calcs'!AA28 -> 225.9319509 | AI17: ='Residential Bill Calcs'!AB28 -> 226.8265396 | AJ17: ='Residential Bill Calcs'!AC28 -> 227.726361 | AK17: ='Residential Bill Calcs'!AD28 -> 228.6314373 | AL17: ='Residential Bill Calcs'!AE28 -> 229.5417904 | AM17: ='Residential Bill Calcs'!AF28 -> 230.4574426 | AN17: ='Residential Bill Calcs'!AG28 -> 231.3784162 | AO17: ='Residential Bill Calcs'!AH28 -> 209.8613077 | AP17: ='Residential Bill Calcs'!AI28 -> 210.8860248 | AQ17: ='Residential Bill Calcs'!AJ28 -> 211.9157454
B18: Fractional change from status quo | J18: =J17/J15-1 -> -0.1928571429 | K18: =K17/K15-1 -> -0.1902111771 | L18: -0.187777395 | M18: -0.2205701646 | N18: -0.1956252697 | O18: -0.1598319741 | P18: -0.1291640744 | Q18: -0.08650757713 | R18: -0.07211426183 | S18: 0.0124804593 | T18: 0.02510738533 | U18: 0.1296398551 | V18: 0.1302231655 | W18: 0.1278630767 | X18: 0.126176286 | Y18: 0.1238342002 | Z18: 0.1217148699 | AA18: 0.1200129805 | AB18: 0.1202566772 | AC18: =AC17/AC16-1 -> 0.1191762683 | AD18: =AD17/AD16-1 -> 0.118105566 | AE18: 0.1170444831 | AF18: 0.1159929332 | AG18: 0.1149508306 | AH18: 0.1139180905 | AI18: 0.1128946287 | AJ18: 0.1118803618 | AK18: 0.1108752074 | AL18: 0.1098790834 | AM18: 0.1088919088 | AN18: 0.1079136032 | AO18: 0 | AP18: 0 | AQ18: 0

Sheet Near-term Impact Summary
B2: Average Monthly Residential Bill (750 kWh/month) | C2: Actual 2016 | D2: 2017 | E2: 2018 | F2: 2019 | G2: 2020 | H2: 2021
B3: Total Bill (includes HST) | C3: =C4*1.13 -> 158.2909439 | D3: =D4*1.13 -> 164.3403534 | E3: 167.0794427 | F3: 169.9103739 | G3: 180.6001529 | H3: 178.4994543
B4: Total Bill (excludes HST) | C4: ='IESO Res Bill'!C12 -> 140.0804813 | D4: ='IESO Res Bill'!D12 -> 145.433941 | E4: ='IESO Res Bill'!E12 -> 147.8579139 | F4: ='IESO Res Bill'!F12 -> 150.3631628 | G4: ='IESO Res Bill'!G12 -> 159.8231442 | H4: ='IESO Res Bill'!H12 -> 157.9641188
B5: Impact of GA Financing | D5: ='Residential Bill Calcs'!C15 -> -26.04797434 | E5: ='Residential Bill Calcs'!D15 -> -26.12422784 | F5: ='Residential Bill Calcs'!E15 -> -26.234803 | G5: ='Residential Bill Calcs'!F15 -> -32.25221721 | H5: ='Residential Bill Calcs'!G15 -> -27.90177335
B6: Impact of Tax-Basing Social Programs | D6: -2 | E6: -2 | F6: -2 | G6: -3 | H6: -3
B7: Subtotal | D7: =SUM(D4:D6) -> 117.3859667 | E7: =SUM(E4:E6) -> 119.733686 | F7: 122.1283598 | G7: 124.570927 | H7: 127.0623455
B8: 8% rebate | D8: =-D7*0.08 -> -9.390877336 | E8: =-E7*0.08 -> -9.578694883 | F8: -9.770268781 | G8: -9.965674156 | H8: -10.16498764
B9: HST | D9: =D7*0.13 -> 15.26017567 | E9: =E7*0.13 -> 15.56537918 | F9: 15.87668677 | G9: 16.1942205 | H9: 16.51810491
B10: Revised Bill (includes HST) | C10: =C3 -> 158.2909439 | D10: =SUM(D7:D9) -> 123.255265 | E10: =SUM(E7:E9) -> 125.7203703 | F10: 128.2347777 | G10: 130.7994733 | H10: 133.4154628
B11: Year-over-Year Change | D11: =D10/C10-1 -> -0.2213372288 | E11: =E10/D10-1 -> 0.02 | F11: =F10/E10-1 -> 0.02 | G11: 0.02 | H11: 0.02
B12: Change from Forecast | D12: =D10/D3-1 -> -0.25 | E12: =E10/E3-1 -> -0.2475413592 | F12: -0.2452798803 | G12: -0.2757510379 | H12: -0.2525721532

Sheet Debt Calcs
B3: Class B share of consumption | C3: 0.82
B4: Class B share of GA cost | C4: 0.88
B5: Annual interest on debt | C5: 0.05116 | D5: This is equivalent to 5% compounded monthly
B7: Average Growth Rate 2028-2034 | C7: =AVERAGE(O11:U11) -> -0.07082612914
C9: 2016 | D9: 2017 | E9: 2018 | F9: 2019 | G9: 2020 | H9: 2021 | I9: 2022 | J9: 2023 | K9: 2024 | L9: 2025 | M9: 2026 | N9: 2027 | O9: 2028 | P9: 2029 | Q9: 2030 | R9: 2031 | S9: 2032 | T9: 2033 | U9: 2034 | V9: 2035 | W9: 2036 | X9: 2037 | Y9: 2038 | Z9: 2039 | AA9: 2040 | AB9: 2041 | AC9: 2042 | AD9: 2043 | AE9: 2044 | AF9: 2045 | AG9: 2046 | AH9: 2047 | AI9: 2048 | AJ9: 2049 | AK9: 2050
B10: IESO Class B GA Rate - Revised Base ($2016/MWh) | C10: ='IESO HOEP-GA'!C14 -> 90.85732287 | D10: ='IESO HOEP-GA'!D14 -> 88.99216188 | E10: ='IESO HOEP-GA'!E14 -> 85.36679837 | F10: ='IESO HOEP-GA'!F14 -> 82.2699235 | G10: ='IESO HOEP-GA'!G14 -> 84.95995195 | H10: ='IESO HOEP-GA'!H14 -> 74.22519073 | I10: ='IESO HOEP-GA'!I14 -> 71.36098516 | J10: ='IESO HOEP-GA'!J14 -> 67.39454863 | K10: ='IESO HOEP-GA'!K14 -> 71.77957202 | L10: ='IESO HOEP-GA'!L14 -> 66.57088012 | M10: ='IESO HOEP-GA'!M14 -> 62.64569526 | N10: ='IESO HOEP-GA'!N14 -> 67.12117215 | O10: ='IESO HOEP-GA'!O14 -> 64.47174938 | P10: ='IESO HOEP-GA'!P14 -> 58.47302678 | Q10: ='IESO HOEP-GA'!Q14 -> 55.291821 | R10: ='IESO HOEP-GA'!R14 -> 48.25823346 | S10: ='IESO HOEP-GA'!S14 -> 47.88165494 | T10: ='IESO HOEP-GA'!T14 -> 43.54333668 | U10: ='IESO HOEP-GA'!U14 -> 39.91857569 | V10: ='IESO HOEP-GA'!V14 -> 28.1837217
B11: Relative change in GA | D11: =D10/C10-1 -> -0.02052846077 | E11: -0.04073800924 | F11: -0.03627727552 | G11: 0.03269759264 | H11: -0.1263508391 | I11: -0.03858805267 | J11: -0.05558270425 | K11: 0.0650649567 | L11: -0.07256510108 | M11: -0.05896249014 | N11: 0.07144109218 | O11: -0.03947223626 | P11: -0.09304420395 | Q11: -0.05440467095 | R11: -0.1272084625 | S11: -0.007803404626 | T11: -0.09060501917 | U11: -0.08324490655
B12: IESO Class B GA Rate - Revised Base Extrapolated ($2016/MWh) | W12: =V10*(1+C7) -> 26.18757778 | X12: =W12*(1+$C$7) -> 24.33281302 | Y12: 22.60941406 | Z12: 21.00807678 | AA12: 19.52015602 | AB12: 18.13761893 | AC12: 16.85300159 | AD12: 15.65936872 | AE12: 14.55027625 | AF12: 13.51973651 | AG12: 12.5621859 | AH12: 11.6724549 | AI12: 10.8457401 | AJ12: 10.07757831 | AK12: 9.363822451
B13: Assumed IESO Class B GA Rate - ($2016/MWh) | C13: =C10+C12 -> 90.85732287 | D13: =D10+D12 -> 88.99216188 | E13: 85.36679837 | F13: 82.2699235 | G13: 84.95995195 | H13: 74.22519073 | I13: 71.36098516 | J13: 67.39454863 | K13: 71.77957202 | L13: 66.57088012 | M13: 62.64569526 | N13: 67.12117215 | O13: 64.47174938 | P13: 58.47302678 | Q13: 55.291821 | R13: 48.25823346 | S13: 47.88165494 | T13: 43.54333668 | U13: 39.91857569 | V13: 28.1837217 | W13: 26.18757778 | X13: 24.33281302 | Y13: 22.60941406 | Z13: 21.00807678 | AA13: 19.52015602 | AB13: 18.13761893 | AC13: 16.85300159 | AD13: 15.65936872 | AE13: 14.55027625 | AF13: 13.51973651 | AG13: 12.5621859 | AH13: 11.6724549 | AI13: =AI10+AI12 -> 10.8457401 | AJ13: 10.07757831 | AK13: 9.363822451
B14: Total GA Cost (2016$ million) | D14: =D13*('Debt Calcs'!$C$3/'Debt Calcs'!$C$4)*'Residential Bill Calcs'!C10 -> 11858.20557 | E14: =E13*('Debt Calcs'!$C$3/'Debt Calcs'!$C$4)*'Residential Bill Calcs'!D10 -> 11375.12588 | F14: =F13*('Debt Calcs'!$C$3/'Debt Calcs'!$C$4)*'Residential Bill Calcs'!E10 -> 10885.8067 | G14: =G13*('Debt Calcs'!$C$3/'Debt Calcs'!$C$4)*'Residential Bill Calcs'!F10 -> 11241.74637 | H14: =H13*('Debt Calcs'!$C$3/'Debt Calcs'!$C$4)*'Residential Bill Calcs'!G10 -> 9821.342283 | I14: =I13*('Debt Calcs'!$C$3/'Debt Calcs'!$C$4)*'Residential Bill Calcs'!H10 -> 9442.35581 | J14: =J13*('Debt Calcs'!$C$3/'Debt Calcs'!$C$4)*'Residential Bill Calcs'!I10 -> 8917.524139 | K14: =K13*('Debt Calcs'!$C$3/'Debt Calcs'!$C$4)*'Residential Bill Calcs'!J10 -> 9497.742461 | L14: =L13*('Debt Calcs'!$C$3/'Debt Calcs'!$C$4)*'Residential Bill Calcs'!K10 -> 8808.537819 | M14: =M13*('Debt Calcs'!$C$3/'Debt Calcs'!$C$4)*'Residential Bill Calcs'!L10 -> 8230.790097 | N14: =N13*('Debt Calcs'!$C$3/'Debt Calcs'!$C$4)*'Residential Bill Calcs'!M10 -> 8881.35146 | O14: =O13*('Debt Calcs'!$C$3/'Debt Calcs'!$C$4)*'Residential Bill Calcs'!N10 -> 8530.784657 | P14: =P13*('Debt Calcs'!$C$3/'Debt Calcs'!$C$4)*'Residential Bill Calcs'!O10 -> 7737.044589 | Q14: =Q13*('Debt Calcs'!$C$3/'Debt Calcs'!$C$4)*'Residential Bill Calcs'!P10 -> 7367.635148 | R14: =R13*('Debt Calcs'!$C$3/'Debt Calcs'!$C$4)*'Residential Bill Calcs'!Q10 -> 6430.409609 | S14: =S13*('Debt Calcs'!$C$3/'Debt Calcs'!$C$4)*'Residential Bill Calcs'!R10 -> 6424.847518 | T14: =T13*('Debt Calcs'!$C$3/'Debt Calcs'!$C$4)*'Residential Bill Calcs'!S10 -> 5883.298558 | U14: =U13*('Debt Calcs'!$C$3/'Debt Calcs'!$C$4)*'Residential Bill Calcs'!T10 -> 5430.740774 | V14: =V13*('Debt Calcs'!$C$3/'Debt Calcs'!$C$4)*'Residential Bill Calcs'!U10 -> 3886.791438 | W14: =W13*('Debt Calcs'!$C$3/'Debt Calcs'!$C$4)*'Residential Bill Calcs'!V10 -> 3626.537874 | X14: =X13*('Debt Calcs'!$C$3/'Debt Calcs'!$C$4)*'Residential Bill Calcs'!W10 -> 3383.710489 | Y14: =Y13*('Debt Calcs'!$C$3/'Debt Calcs'!$C$4)*'Residential Bill Calcs'!X10 -> 3157.14245 | Z14: =Z13*('Debt Calcs'!$C$3/'Debt Calcs'!$C$4)*'Residential Bill Calcs'!Y10 -> 2945.745058 | AA14: =AA13*('Debt Calcs'!$C$3/'Debt Calcs'!$C$4)*'Residential Bill Calcs'!Z10 -> 2748.50251 | AB14: =AB13*('Debt Calcs'!$C$3/'Debt Calcs'!$C$4)*'Residential Bill Calcs'!AA10 -> 2564.467019 | AC14: =AC13*('Debt Calcs'!$C$3/'Debt Calcs'!$C$4)*'Residential Bill Calcs'!AB10 -> 2392.75426 | AD14: =AD13*('Debt Calcs'!$C$3/'Debt Calcs'!$C$4)*'Residential Bill Calcs'!AC10 -> 2232.539123 | AE14: =AE13*('Debt Calcs'!$C$3/'Debt Calcs'!$C$4)*'Residential Bill Calcs'!AD10 -> 2083.051745 | AF14: =AF13*('Debt Calcs'!$C$3/'Debt Calcs'!$C$4)*'Residential Bill Calcs'!AE10 -> 1943.573811 | AG14: =AG13*('Debt Calcs'!$C$3/'Debt Calcs'!$C$4)*'Residential Bill Calcs'!AF10 -> 1813.435105 | AH14: =AH13*('Debt Calcs'!$C$3/'Debt Calcs'!$C$4)*'Residential Bill Calcs'!AG10 -> 1692.010285 | AI14: =AI13*('Debt Calcs'!$C$3/'Debt Calcs'!$C$4)*'Residential Bill Calcs'!AH10 -> 1578.715885 | AJ14: =AJ13*('Debt Calcs'!$C$3/'Debt Calcs'!$C$4)*'Residential Bill Calcs'!AI10 -> 1473.007503 | AK14: =AK13*('Debt Calcs'!$C$3/'Debt Calcs'!$C$4)*'Residential Bill Calcs'!AJ10 -> 1374.377191
B15: Total GA Cost (nominal $ million) | D15: =D14*1.02^(D9-2016) -> 12095.36968 | E15: 11834.68097 | F15: 11552.10515 | G15: 12168.4278 | H15: 10843.55548 | I15: 10633.62626 | J15: 10243.43217 | K15: 11128.11905 | L15: 10527.01809 | M15: 10033.2872 | N15: 11042.84423 | O15: 10819.09764 | P15: 10008.69218 | Q15: 9721.438112 | R15: 8654.484695 | S15: 8819.93883 | T15: 8238.038322 | U15: 7756.435132 | V15: 5662.321192 | W15: 5388.844511 | X15: 5128.576105 | Y15: 4880.878046 | Z15: 4645.143215 | AA15: 4420.793817 | AB15: 4207.279963 | AC15: 4004.078322 | AD15: 3810.690838 | AE15: 3626.643511 | AF15: 3451.485233 | AG15: 3284.786684 | AH15: 3126.13928 | AI15: 2975.154169 | AJ15: 2831.46128 | AK15: 2694.708417
B17: Proposed GA Paid by Ratepayer (nominal $ million) | D17: 9594.764145 | E17: 9326.755096 | F17: 9051.17624 | G17: 9093.866791 | H17: 8183.716495 | I17: 8179.552967 | J17: 8205.709757 | K17: 9742.51728 | L17: 9315.95853 | M17: 10236.41209 | N17: 11475.72688 | O17: 13060.64879 | P17: 12250.24333 | Q17: 11962.98926 | R17: 10896.03584 | S17: 11061.48998 | T17: 10479.58947 | U17: 9997.98628 | V17: 7903.872339 | W17: 7630.395659 | X17: 7370.127253 | Y17: 7122.429193 | Z17: 6886.694363 | AA17: 6662.344965 | AB17: 6448.831111 | AC17: 6245.62947 | AD17: 6052.241986 | AE17: 5868.194658 | AF17: 5693.03638 | AG17: 5526.337832 | AH17: 5367.690427 | AI17: 2975.154169 | AJ17: 2831.46128 | AK17: 2694.708417
B18: Difference from forecast | D18: =D15-D17 -> 2500.605537 | E18: 2507.925872 | F18: 2500.928913 | G18: 3074.561014 | H18: 2659.838981 | I18: 2454.073295 | J18: 2037.722412 | K18: 1385.601773 | L18: 1211.059558 | M18: -203.1248853 | N18: -432.8826504 | O18: -2241.551148 | P18: -2241.551148 | Q18: -2241.551148 | R18: -2241.551148 | S18: -2241.551148 | T18: -2241.551148 | U18: -2241.551148 | V18: -2241.551148 | W18: -2241.551148 | X18: -2241.551148 | Y18: -2241.551148 | Z18: -2241.551148 | AA18: -2241.551148 | AB18: -2241.551148 | AC18: -2241.551148 | AD18: -2241.551148 | AE18: -2241.551148 | AF18: -2241.551148 | AG18: -2241.551148 | AH18: -2241.551148 | AI18: 0 | AJ18: 0 | AK18: 0
B20: Accumulated Debt | D20: =D18 -> 2500.605537 | E20: =D20*(1+$C$5) + E18 -> 5136.462389 | F20: 7900.172718 | G20: 11378.90657 | H20: 14620.89041 | I20: 17822.96846 | J20: 20772.51394 | K20: 23220.83752 | L20: 25619.87513 | M20: 26727.46305 | N20: 27661.95741 | O20: 26835.59201 | P20: 25966.94975 | Q20: 25053.86775 | R20: 24094.07247 | S20: 23085.17407 | T20: 22024.66043 | U20: 20909.89091 | V20: 19738.08978 | W20: 18506.33931 | X20: 17211.57248 | Y20: 15850.56538 | Z20: 14419.92916 | AA20: 12916.10159 | AB20: 11335.33819 | AC20: 9673.702949 | AD20: 7927.058444 | AE20: 6091.055607 | AF20: 4161.122864 | AG20: 2132.454762 | AH20: 1.359694579e-10 | AI20: 1.429256554e-10 | AJ20: 1.502377319e-10 | AK20: 1.579238943e-10
B21: Total Amount paid by ratepayer | D21: =D17 -> 9594.764145 | E21: =E17 -> 9326.755096 | F21: 9051.17624 | G21: 9093.866791 | H21: 8183.716495 | I21: 8179.552967 | J21: 8205.709757 | K21: 9742.51728 | L21: 9315.95853 | M21: 10236.41209 | N21: 11475.72688 | O21: 13060.64879 | P21: 12250.24333 | Q21: 11962.98926 | R21: 10896.03584 | S21: 11061.48998 | T21: 10479.58947 | U21: 9997.98628 | V21: 7903.872339 | W21: 7630.395659 | X21: 7370.127253 | Y21: 7122.429193 | Z21: 6886.694363 | AA21: 6662.344965 | AB21: 6448.831111 | AC21: 6245.62947 | AD21: 6052.241986 | AE21: 5868.194658 | AF21: 5693.03638 | AG21: 5526.337832 | AH21: 5367.690427 | AI21: 2975.154169 | AJ21: 2831.46128 | AK21: 2694.708417
B22: Difference in payment | D22: =D21-D$15 -> -2500.605537 | E22: =E21-E$15 -> -2507.925872 | F22: -2500.928913 | G22: -3074.561014 | H22: -2659.838981 | I22: -2454.073295 | J22: -2037.722412 | K22: -1385.601773 | L22: -1211.059558 | M22: 203.1248853 | N22: 432.8826504 | O22: 2241.551148 | P22: 2241.551148 | Q22: 2241.551148 | R22: 2241.551148 | S22: 2241.551148 | T22: 2241.551148 | U22: 2241.551148 | V22: =V21-V$15 -> 2241.551148 | W22: =W21-W$15 -> 2241.551148 | X22: 2241.551148 | Y22: 2241.551148 | Z22: 2241.551148 | AA22: 2241.551148 | AB22: 2241.551148 | AC22: 2241.551148 | AD22: 2241.551148 | AE22: 2241.551148 | AF22: 2241.551148 | AG22: 2241.551148 | AH22: 2241.551148 | AI22: =AI21-AI$15 -> 0 | AJ22: 0 | AK22: 0

Sheet Residential Bill Calcs
B2: RPP-eligible share of consumption | C2: =C7/C10 -> 0.5034965035
B3: RPP-eligible share of GA savings | C3: 1
B4: Average monthly residential consumtion (MW) | C4: 0.75
B5: Average Demand Growth Rate 2026-2035 | C5: =AVERAGE(L11:U11) -> 0.004162483188
B6: Average Residential Bill Annual Growth Rate 2029-2035 | C6: =AVERAGE(O18:U18) -> 0.004882829883
B7: Assumed RPP Eligible Demand (TWh) | C7: 72
C9: 2017 | D9: 2018 | E9: 2019 | F9: 2020 | G9: 2021 | H9: 2022 | I9: 2023 | J9: 2024 | K9: 2025 | L9: 2026 | M9: 2027 | N9: 2028 | O9: 2029 | P9: 2030 | Q9: 2031 | R9: 2032 | S9: 2033 | T9: 2034 | U9: 2035 | V9: 2036 | W9: 2037 | X9: 2038 | Y9: 2039 | Z9: 2040 | AA9: 2041 | AB9: 2042 | AC9: 2043 | AD9: 2044 | AE9: 2045 | AF9: 2046 | AG9: 2047 | AH9: 2048 | AI9: 2049 | AJ9: 2050
B10: OPO Demand - Outlook B + Extrapolation | C10: 143 | D10: 143 | E10: 142 | F10: 142 | G10: 142 | H10: 142 | I10: 142 | J10: 142 | K10: 142 | L10: 141 | M10: 142 | N10: 142 | O10: 142 | P10: 143 | Q10: 143 | R10: 144 | S10: 145 | T10: 146 | U10: 148 | V10: =U10*(1+$C$5) -> 148.6160475 | W10: 149.2346593 | X10: 149.8558461 | Y10: 150.4796185 | Z10: 151.1059874 | AA10: 151.7349635 | AB10: 152.3665578 | AC10: 153.000781 | AD10: 153.6376442 | AE10: 154.2771583 | AF10: 154.9193344 | AG10: 155.5641835 | AH10: 156.2117168 | AI10: 156.8619454 | AJ10: 157.5148806
B11: Year-over-year growth | D11: =D10/C10-1 -> 0 | E11: =E10/D10-1 -> -0.006993006993 | F11: 0 | G11: 0 | H11: 0 | I11: 0 | J11: 0 | K11: 0 | L11: -0.007042253521 | M11: 0.007092198582 | N11: 0 | O11: 0 | P11: 0.007042253521 | Q11: 0 | R11: 0.006993006993 | S11: 0.006944444444 | T11: 0.006896551724 | U11: 0.01369863014
C13: 2017 | D13: 2018 | E13: 2019 | F13: 2020 | G13: 2021 | H13: 2022 | I13: 2023 | J13: 2024 | K13: 2025 | L13: 2026 | M13: 2027 | N13: 2028 | O13: 2029 | P13: 2030 | Q13: 2031 | R13: 2032 | S13: 2033 | T13: 2034 | U13: 2035 | V13: 2036 | W13: 2037 | X13: 2038 | Y13: 2039 | Z13: 2040 | AA13: 2041 | AB13: 2042 | AC13: 2043 | AD13: 2044 | AE13: 2045 | AF13: 2046 | AG13: 2047 | AH13: 2048 | AI13: 2049 | AJ13: 2050
B14: Change in Ratepayer GA Cost ($ million) | C14: ='Debt Calcs'!D22 -> -2500.605537 | D14: ='Debt Calcs'!E22 -> -2507.925872 | E14: ='Debt Calcs'!F22 -> -2500.928913 | F14: ='Debt Calcs'!G22 -> -3074.561014 | G14: ='Debt Calcs'!H22 -> -2659.838981 | H14: ='Debt Calcs'!I22 -> -2454.073295 | I14: ='Debt Calcs'!J22 -> -2037.722412 | J14: ='Debt Calcs'!K22 -> -1385.601773 | K14: ='Debt Calcs'!L22 -> -1211.059558 | L14: ='Debt Calcs'!M22 -> 203.1248853 | M14: ='Debt Calcs'!N22 -> 432.8826504 | N14: ='Debt Calcs'!O22 -> 2241.551148 | O14: ='Debt Calcs'!P22 -> 2241.551148 | P14: ='Debt Calcs'!Q22 -> 2241.551148 | Q14: ='Debt Calcs'!R22 -> 2241.551148 | R14: ='Debt Calcs'!S22 -> 2241.551148 | S14: ='Debt Calcs'!T22 -> 2241.551148 | T14: ='Debt Calcs'!U22 -> 2241.551148 | U14: ='Debt Calcs'!V22 -> 2241.551148 | V14: ='Debt Calcs'!W22 -> 2241.551148 | W14: ='Debt Calcs'!X22 -> 2241.551148 | X14: ='Debt Calcs'!Y22 -> 2241.551148 | Y14: ='Debt Calcs'!Z22 -> 2241.551148 | Z14: ='Debt Calcs'!AA22 -> 2241.551148 | AA14: ='Debt Calcs'!AB22 -> 2241.551148 | AB14: ='Debt Calcs'!AC22 -> 2241.551148 | AC14: ='Debt Calcs'!AD22 -> 2241.551148 | AD14: ='Debt Calcs'!AE22 -> 2241.551148 | AE14: ='Debt Calcs'!AF22 -> 2241.551148 | AF14: ='Debt Calcs'!AG22 -> 2241.551148 | AG14: ='Debt Calcs'!AH22 -> 2241.551148 | AH14: ='Debt Calcs'!AI22 -> 0 | AI14: ='Debt Calcs'!AJ22 -> 0 | AJ14: ='Debt Calcs'!AK22 -> 0
B15: Change in Average Monthly Residential Bill - pretax(nominal $/month) | C15: =$C$4*(C14*$C$3/(C$10*$C$2)) -> -26.04797434 | D15: -26.12422784 | E15: -26.234803 | F15: -32.25221721 | G15: -27.90177335 | H15: -25.74328647 | I15: -21.37575594 | J15: -14.53499513 | K15: -12.7040432 | L15: 2.145896764 | M15: 4.540949164 | N15: 23.51392416 | O15: 23.51392416 | P15: 23.34949112 | Q15: 23.34949112 | R15: 23.18734188 | S15: 23.02742918 | T15: 22.86970706 | U15: 22.56065696 | V15: 22.46713788 | W15: 22.37400645 | X15: 22.28126108 | Y15: 22.18890015 | Z15: 22.09692209 | AA15: 22.00532529 | AB15: 21.91410818 | AC15: 21.82326919 | AD15: 21.73280675 | AE15: 21.64271929 | AF15: 21.55300527 | AG15: 21.46366314 | AH15: 0 | AI15: 0 | AJ15: 0
B17: $/month | C17: 2017 | D17: 2018 | E17: 2019 | F17: 2020 | G17: 2021 | H17: 2022 | I17: 2023 | J17: 2024 | K17: 2025 | L17: 2026 | M17: 2027 | N17: 2028 | O17: 2029 | P17: 2030 | Q17: 2031 | R17: 2032 | S17: 2033 | T17: 2034 | U17: 2035 | V17: 2036 | W17: 2037 | X17: 2038 | Y17: 2039 | Z17: 2040 | AA17: 2041 | AB17: 2042 | AC17: 2043 | AD17: 2044 | AE17: 2045 | AF17: 2046 | AG17: 2047 | AH17: 2048 | AI17: 2049 | AJ17: 2050
B18: Relative change in Status Quo | D18: =D19/C19-1 -> 0.01666717418 | E18: =E19/D19-1 -> 0.01694362392 | F18: 0.06291422198 | G18: -0.01163176541 | H18: 0.01962829029 | I18: 0.02749429739 | J18: 0.01526869582 | K18: 0.04847977541 | L18: -0.02398283139 | M18: 0.05188169023 | N18: 0.002862573792 | O18: -0.004479313579 | P18: 0.01133585468 | Q18: 0.01336852414 | R18: 0.01183729168 | S18: 0.01039561909 | T18: 0.007234432584 | U18: -0.0155125994
B19: IESO Bill Forecast | C19: ='IESO Res Bill'!D15 -> 152.7056381 | D19: ='IESO Res Bill'!E15 -> 155.2508096 | E19: ='IESO Res Bill'!F15 -> 157.8813209 | F19: ='IESO Res Bill'!G15 -> 167.8143014 | G19: ='IESO Res Bill'!H15 -> 165.8623248 | H19: ='IESO Res Bill'!I15 -> 169.1179186 | I19: ='IESO Res Bill'!J15 -> 173.767697 | J19: ='IESO Res Bill'!K15 -> 176.4209031 | K19: ='IESO Res Bill'!L15 -> 184.9737489 | L19: ='IESO Res Bill'!M15 -> 180.5375546 | M19: ='IESO Res Bill'!N15 -> 189.9041481 | N19: ='IESO Res Bill'!O15 -> 190.4477627 | O19: ='IESO Res Bill'!P15 -> 189.5946875 | P19: ='IESO Res Bill'!Q15 -> 191.7439053 | Q19: ='IESO Res Bill'!R15 -> 194.3072384 | R19: ='IESO Res Bill'!S15 -> 196.6073098 | S19: ='IESO Res Bill'!T15 -> 198.6511645 | T19: ='IESO Res Bill'!U15 -> 200.088293 | U19: ='IESO Res Bill'!V15 -> 196.9844034
B20: IESO Bill Forecast Extrapolated | V20: =U19*(1+C6) -> 197.9462448 | W20: =V20*(1+$C$6) -> 198.9127826 | X20: 199.8840399 | Y20: 200.8600396 | Z20: 201.840805 | AA20: 202.8263594 | AB20: 203.816726 | AC20: 204.8119284 | AD20: 205.8119902 | AE20: 206.8169351 | AF20: 207.826787 | AG20: 208.8415699 | AH20: 209.8613077 | AI20: 210.8860248 | AJ20: 211.9157454
B21: Debt Financed GA
B22: Pre-tax Forecast, no rebate | C22: ='IESO Res Bill'!D12 -> 145.433941 | D22: ='IESO Res Bill'!E12 -> 147.8579139 | E22: ='IESO Res Bill'!F12 -> 150.3631628 | F22: ='IESO Res Bill'!G12 -> 159.8231442 | G22: ='IESO Res Bill'!H12 -> 157.9641188 | H22: ='IESO Res Bill'!I12 -> 161.0646844 | I22: ='IESO Res Bill'!J12 -> 165.4930448 | J22: ='IESO Res Bill'!K12 -> 168.0199077 | K22: ='IESO Res Bill'!L12 -> 176.1654751 | L22: ='IESO Res Bill'!M12 -> 171.9405282 | M22: ='IESO Res Bill'!N12 -> 180.8610934 | N22: ='IESO Res Bill'!O12 -> 181.3788217 | O22: ='IESO Res Bill'!P12 -> 180.566369 | P22: ='IESO Res Bill'!Q12 -> 182.6132432 | Q22: ='IESO Res Bill'!R12 -> 185.0545127 | R22: ='IESO Res Bill'!S12 -> 187.245057 | S22: ='IESO Res Bill'!T12 -> 189.1915852 | T22: ='IESO Res Bill'!U12 -> 190.560279 | U22: ='IESO Res Bill'!V12 -> 187.6041937 | V22: =U22*(1+C6) -> 188.5202331 | W22: =V22*(1+$C$6) -> 189.4407453 | X22: 190.3657523 | Y22: 191.2952759 | Z22: 192.2293381 | AA22: 193.1679613 | AB22: 194.1111676 | AC22: 195.0589794 | AD22: 196.0114192 | AE22: 196.9685096 | AF22: 197.9302734 | AG22: 198.8967332 | AH22: 199.8679121 | AI22: 200.8438331 | AJ22: 201.8245194
B23: Cost Savings due to tax-basing of social programs | C23: ='Near-term Impact Summary'!D6 -> -2 | D23: ='Near-term Impact Summary'!E6 -> -2 | E23: ='Near-term Impact Summary'!F6 -> -2 | F23: ='Near-term Impact Summary'!G6 -> -3 | G23: ='Near-term Impact Summary'!H6 -> -3
B24: Pre-tax Financing Impact | C24: =C15 -> -26.04797434 | D24: -26.12422784 | E24: -26.234803 | F24: -32.25221721 | G24: -27.90177335 | H24: -25.74328647 | I24: -21.37575594 | J24: -14.53499513 | K24: -12.7040432 | L24: 2.145896764 | M24: 4.540949164 | N24: 23.51392416 | O24: 23.51392416 | P24: 23.34949112 | Q24: 23.34949112 | R24: 23.18734188 | S24: 23.02742918 | T24: 22.86970706 | U24: 22.56065696 | V24: 22.46713788 | W24: 22.37400645 | X24: 22.28126108 | Y24: 22.18890015 | Z24: 22.09692209 | AA24: 22.00532529 | AB24: 21.91410818 | AC24: 21.82326919 | AD24: 21.73280675 | AE24: 21.64271929 | AF24: 21.55300527 | AG24: 21.46366314 | AH24: 0 | AI24: 0 | AJ24: 0
B25: Pre-tax sub-total | C25: =SUM(C22:C24) -> 117.3859667 | D25: 119.733686 | E25: 122.1283598 | F25: 124.570927 | G25: 127.0623455 | H25: 135.3213979 | I25: 144.1172888 | J25: 153.4849126 | K25: 163.4614319 | L25: 174.086425 | M25: 185.4020426 | N25: 204.8927458 | O25: 204.0802932 | P25: 205.9627343 | Q25: 208.4040038 | R25: 210.4323988 | S25: 212.2190144 | T25: 213.4299861 | U25: 210.1648507 | V25: 210.987371 | W25: 211.8147518 | X25: 212.6470133 | Y25: 213.484176 | Z25: 214.3262602 | AA25: 215.1732866 | AB25: 216.0252758 | AC25: 216.8822486 | AD25: 217.744226 | AE25: 218.6112289 | AF25: 219.4832786 | AG25: 220.3603963 | AH25: 199.8679121 | AI25: 200.8438331 | AJ25: 201.8245194
B26: 8% Rebate | C26: =-C25*0.08 -> -9.390877336 | D26: -9.578694883 | E26: -9.770268781 | F26: -9.965674156 | G26: -10.16498764 | H26: -10.82571184 | I26: -11.52938311 | J26: -12.27879301 | K26: -13.07691455 | L26: -13.926914 | M26: -14.83216341 | N26: -16.39141967 | O26: -16.32642346 | P26: -16.47701874 | Q26: -16.67232031 | R26: -16.83459191 | S26: -16.97752115 | T26: -17.07439889 | U26: -16.81318806 | V26: -16.87898968 | W26: -16.94518014 | X26: -17.01176107 | Y26: -17.07873408 | Z26: -17.14610082 | AA26: -17.21386293 | AB26: -17.28202206 | AC26: -17.35057989 | AD26: -17.41953808 | AE26: -17.48889831 | AF26: -17.55866229 | AG26: -17.62883171 | AH26: -15.98943297 | AI26: -16.06750665 | AJ26: -16.14596155
B27: HST | C27: =C25*0.13 -> 15.26017567 | D27: 15.56537918 | E27: 15.87668677 | F27: 16.1942205 | G27: 16.51810491 | H27: 17.59178173 | I27: 18.73524755 | J27: 19.95303864 | K27: 21.24998615 | L27: 22.63123525 | M27: 24.10226554 | N27: 26.63605696 | O27: 26.53043812 | P27: 26.77515546 | Q27: 27.0925205 | R27: 27.35621185 | S27: 27.58847187 | T27: 27.74589819 | U27: 27.32143059 | V27: 27.42835823 | W27: 27.53591773 | X27: 27.64411174 | Y27: 27.75294288 | Z27: 27.86241383 | AA27: 27.97252726 | AB27: 28.08328585 | AC27: 28.19469232 | AD27: 28.30674938 | AE27: 28.41945976 | AF27: 28.53282622 | AG27: 28.64685152 | AH27: 25.98282858 | AI27: 26.10969831 | AJ27: 26.23718752
B28: Modified Bill after tax ($/month) | C28: =SUM(C25:C27) -> 123.255265 | D28: 125.7203703 | E28: 128.2347777 | F28: 130.7994733 | G28: 133.4154628 | H28: 142.0874678 | I28: 151.3231533 | J28: 161.1591582 | K28: 171.6345035 | L28: 182.7907462 | M28: 194.6721447 | N28: 215.1373831 | O28: 214.2843079 | P28: 216.260871 | Q28: 218.824204 | R28: 220.9540188 | S28: 222.8299651 | T28: 224.1014854 | U28: 220.6730932 | V28: 221.5367395 | W28: 222.4054894 | X28: 223.279364 | Y28: 224.1583848 | Z28: 225.0425732 | AA28: 225.9319509 | AB28: 226.8265396 | AC28: 227.726361 | AD28: 228.6314373 | AE28: 229.5417904 | AF28: 230.4574426 | AG28: 231.3784162 | AH28: 209.8613077 | AI28: 210.8860248 | AJ28: 211.9157454

Sheet Historical Data
B2: 750 kWh/month | C2: 2010 | D2: 2011 | E2: 2012 | F2: 2013 | G2: 2014 | H2: 2015 | I2: 2016
B3: Electricity | G3: 68.78 | H3: 75.51 | I3: 82.61
B4: Distribution | G4: 32.67 | H4: 36.03 | I4: 37.57
B5: Transmission | G5: 10.25 | H5: 11.92 | I5: 12.75
B6: Regulatory | G6: 4.5 | H6: 4.68 | I6: 4.75
B7: DRC | G7: 5.25 | H7: 5.25 | I7: 0
B8: Tax | G8: 15.79 | H8: 17.34 | I8: 17.9
B9: OCEB | G9: -13.72 | H9: -15.07 | I9: 0
B10: Total | C10: 104 | D10: 105 | E10: 112 | F10: 116.41 | G10: 123.51 | H10: 135.65 | I10: 155.58

Sheet IESO HOEP-GA
B2: HOEP (2016$/MWh)
C3: 2016 | D3: 2017 | E3: 2018 | F3: 2019 | G3: 2020 | H3: 2021 | I3: 2022 | J3: 2023 | K3: 2024 | L3: 2025 | M3: 2026 | N3: 2027 | O3: 2028 | P3: 2029 | Q3: 2030 | R3: 2031 | S3: 2032 | T3: 2033 | U3: 2034 | V3: 2035
B4: Revised Base | C4: 18.13757855 | D4: 23.93474087 | E4: 25.74405137 | F4: 27.17444977 | G4: 30.5004622 | H4: 34.23706735 | I4: 36.07502055 | J4: 40.45125913 | K4: 34.82461521 | L4: 44.05400571 | M4: 39.05868721 | N4: 39.89420776 | O4: 39.21979394 | P4: 40.29128539 | Q4: 41.66039155 | R4: 47.07347489 | S4: 46.06277778 | T4: 48.01250228 | U4: 49.79117808 | V4: 55.80722831
B7: Class A GA (2016$/MWh)
C8: 2016 | D8: 2017 | E8: 2018 | F8: 2019 | G8: 2020 | H8: 2021 | I8: 2022 | J8: 2023 | K8: 2024 | L8: 2025 | M8: 2026 | N8: 2027 | O8: 2028 | P8: 2029 | Q8: 2030 | R8: 2031 | S8: 2032 | T8: 2033 | U8: 2034 | V8: 2035
B9: Revised Base | C9: 40.72050218 | D9: 39.88457295 | E9: 38.25975485 | F9: 36.87179518 | G9: 38.07741412 | H9: 33.26630089 | I9: 31.98261912 | J9: 30.20493866 | K9: 32.17022169 | L9: 29.8357863 | M9: 28.07659405 | N9: 30.08241659 | O9: 28.89499633 | P9: 26.2064844 | Q9: 24.78072924 | R9: 21.62841078 | S9: 21.45963553 | T9: 19.51528485 | U9: 17.89073678 | V9: 12.63140124
B12: Class B GA (2016$/MWh)
C13: 2016 | D13: 2017 | E13: 2018 | F13: 2019 | G13: 2020 | H13: 2021 | I13: 2022 | J13: 2023 | K13: 2024 | L13: 2025 | M13: 2026 | N13: 2027 | O13: 2028 | P13: 2029 | Q13: 2030 | R13: 2031 | S13: 2032 | T13: 2033 | U13: 2034 | V13: 2035
B14: Revised Base | C14: 90.85732287 | D14: 88.99216188 | E14: 85.36679837 | F14: 82.2699235 | G14: 84.95995195 | H14: 74.22519073 | I14: 71.36098516 | J14: 67.39454863 | K14: 71.77957202 | L14: 66.57088012 | M14: 62.64569526 | N14: 67.12117215 | O14: 64.47174938 | P14: 58.47302678 | Q14: 55.291821 | R14: 48.25823346 | S14: 47.88165494 | T14: 43.54333668 | U14: 39.91857569 | V14: 28.1837217

Sheet IESO Res Bill
B4: Revised Base Case with updated share values (provided by Joyce Poon, IESO Feb 17, 2017)
B5: Residential Monthly Bills - Based on TOU Shares (65% Off-Peak, 17% Mid-Peak, 18% On-peak)
B6: Updated 2016 History with Revised share values on TOU rates | C6: 2016 Act | D6: 2017 | E6: 2018 | F6: 2019 | G6: 2020 | H6: 2021 | I6: 2022 | J6: 2023 | K6: 2024 | L6: 2025 | M6: 2026 | N6: 2027 | O6: 2028 | P6: 2029 | Q6: 2030 | R6: 2031 | S6: 2032 | T6: 2033 | U6: 2034 | V6: 2035
B7: Distribution | C7: 39.90648933 | D7: 41.61378885 | E7: 43.25665094 | F7: 44.87707876 | G7: 46.71400743 | H7: 48.16598364 | I7: 49.49885067 | J7: 51.14152503 | K7: 52.58820546 | L7: 54.35046471 | M7: 55.70483825 | N7: 57.37115079 | O7: 58.60290635 | P7: 60.02014732 | Q7: 61.46846278 | R7: 62.98724252 | S7: 64.34750694 | T7: 65.55747742 | U7: 66.60472064 | V7: 67.40991602
B8: Transmission | C8: 12.796202 | D8: 13.09713039 | E8: 13.40144577 | F8: 13.78762492 | G8: 14.66931953 | H8: 14.92739461 | I8: 15.58103091 | J8: 15.85867999 | K8: 16.12408168 | L8: 16.50265444 | M8: 16.89715415 | N8: 17.25978043 | O8: 17.56878925 | P8: 17.92270055 | Q8: 18.25627686 | R8: 18.60177695 | S8: 18.92252924 | T8: 20.0469422 | U8: 20.30271487 | V8: 20.54093438
B9: Regulated Charges (Wholesale Uplift and DRC) | C9: 4.88029 | D9: 5.719793402 | E9: 5.890857808 | F9: 5.988401727 | G9: 6.209940128 | H9: 6.498201661 | I9: 6.69770317 | J9: 7.072611383 | K9: 7.132552028 | L9: 7.747768371 | M9: 7.847358421 | N9: 8.035943565 | O9: 8.15987652 | P9: 8.339063322 | Q9: 8.482859123 | R9: 8.781234434 | S9: 8.802487747 | T9: 8.979397269 | U9: 9.098694979 | V9: 9.356287821
B10: DRC | C10: 0 | D10: 0 | E10: 0 | F10: 0 | G10: 0 | H10: 0 | I10: 0 | J10: 0 | K10: 0 | L10: 0 | M10: 0 | N10: 0 | O10: 0 | P10: 0 | Q10: 0 | R10: 0 | S10: 0 | T10: 0 | U10: 0 | V10: 0
B11: Commodity | C11: 82.4975 | D11: 85.0032284 | E11: 85.30895936 | F11: 85.71005735 | G11: 92.22987707 | H11: 88.37253893 | I11: 89.28709968 | J11: 91.42022835 | K11: 92.17506854 | L11: 97.56458759 | M11: 91.4911774 | N11: 98.19421865 | O11: 97.04724954 | P11: 94.28445785 | Q11: 94.4056444 | R11: 94.68425881 | S11: 95.17253302 | T11: 94.60776836 | U11: 94.55414853 | V11: 90.29705553
B12: Total Bill before Taxes | C12: 140.0804813 | D12: 145.433941 | E12: 147.8579139 | F12: 150.3631628 | G12: 159.8231442 | H12: 157.9641188 | I12: 161.0646844 | J12: 165.4930448 | K12: 168.0199077 | L12: 176.1654751 | M12: 171.9405282 | N12: 180.8610934 | O12: 181.3788217 | P12: 180.566369 | Q12: 182.6132432 | R12: 185.0545127 | S12: 187.245057 | T12: 189.1915852 | U12: 190.560279 | V12: 187.6041937
B13: HST | C13: 18.21046257 | D13: 18.90641234 | E13: 19.2215288 | F13: 19.54721116 | G13: 20.77700874 | H13: 20.53533545 | I13: 20.93840897 | J13: 21.51409582 | K13: 21.842588 | L13: 22.90151176 | M13: 22.35226867 | N13: 23.51194215 | O13: 23.57924682 | P13: 23.47362798 | Q13: 23.73972161 | R13: 24.05708665 | S13: 24.3418574 | T13: 24.59490608 | U13: 24.77283627 | V13: 24.38854519
B14: 8% Rebate on Bill before Taxes | C14: 0 | D14: -11.63471528 | E14: -11.82863311 | F14: -12.02905302 | G14: -12.78585153 | H14: -12.63712951 | I14: -12.88517475 | J14: -13.23944358 | K14: -13.44159262 | L14: -14.09323801 | M14: -13.75524226 | N14: -14.46888748 | O14: -14.51030573 | P14: -14.44530952 | Q14: -14.60905945 | R14: -14.80436102 | S14: -14.97960456 | T14: -15.13532682 | U14: -15.24482232 | V14: -15.0083355
B15: Total Bill After Rebate | C15: 158.2909439 | D15: 152.7056381 | E15: 155.2508096 | F15: 157.8813209 | G15: 167.8143014 | H15: 165.8623248 | I15: 169.1179186 | J15: 173.767697 | K15: 176.4209031 | L15: 184.9737489 | M15: 180.5375546 | N15: 189.9041481 | O15: 190.4477627 | P15: 189.5946875 | Q15: 191.7439053 | R15: 194.3072384 | S15: 196.6073098 | T15: 198.6511645 | U15: 200.088293 | V15: 196.9844034
